fUSD/lending_fUSD_20240614
["ID","MTS","AMOUNT","RATE_DAILY","PERIOD"]
[329484917,1718389850111,-500.0,0.00021917,2]
[329484918,1718389850126,-1540.33,0.00021917,2]
[329484919,1718389850137,-500.0,0.00021917,2]
[329484920,1718389850150,-500.0,0.00021917,2]
[329484921,1718389850173,-500.0,0.00021917,2]
[329484922,1718389850188,-500.0,0.00021917,2]
[329484923,1718389850231,-1167.62,0.00021917,2]
[329484924,1718389850243,-638.32,0.00021917,2]
[329484925,1718389850263,-500.0,0.00021917,2]
[329484926,1718389850274,-500.0,0.00021917,2]
[329484927,1718389850286,-509.72054259,0.00021917,2]
[329484928,1718389850297,-500.0,0.00021917,2]
[329484929,1718389850307,-710.8,0.00021917,2]
[329484930,1718389850318,-500.0,0.00021917,2]
[329484931,1718389850329,-523.0972243,0.00021917,2]
[329484932,1718389850343,-500.0,0.00021917,2]
[329484933,1718389850357,-500.0,0.00021917,2]
[329484934,1718389850368,-511.35676235,0.00021917,2]
[329484935,1718389850396,-500.0,0.00021917,2]
[329484936,1718389850407,-500.0,0.00021917,2]
[329484937,1718389850421,-515.19387702,0.00021917,2]
[329484938,1718389850432,-500.0,0.00021917,2]
[329484939,1718389850443,-500.0,0.00021917,2]
[329484940,1718389850496,-500.0,0.00021917,2]
[329484941,1718389850515,-553.91,0.00021917,2]
[329484942,1718389850531,-782.05,0.00021917,2]
[329484943,1718389850558,-500.0,0.00021917,2]
[329484944,1718389850584,-500.0,0.00021917,2]
[329484945,1718389850594,-500.0,0.00021917,2]
[329484946,1718389850623,-500.0,0.00021917,2]
[329484947,1718389850633,-500.0,0.00021917,2]
[329484948,1718389850645,-500.0,0.00021917,2]
[329484949,1718389850657,-503.16475207,0.00021917,2]
[329484950,1718389850670,-559.02799938,0.00021917,2]
[329484951,1718389850684,-500.0,0.00021917,2]
[329484952,1718389850705,-591.6515575,0.00021917,2]
[329484953,1718389850734,-500.0,0.00021917,2]
[329484954,1718389850747,-500.0,0.00021917,2]
[329484955,1718389850762,-1366.32,0.00021917,2]
[329484956,1718389850795,-500.0,0.00021917,2]
[329484957,1718389850821,-500.0,0.00021917,2]
[329484958,1718389850834,-500.0,0.00021917,2]
[329484959,1718389850889,-792.27,0.00021917,2]
[329484961,1718389850911,-500.0,0.00021917,2]
[329484963,1718389850950,-500.0,0.00021917,2]
[329484964,1718389850970,-500.0,0.00021917,2]
[329484965,1718389850981,-508.5196585,0.00021917,2]
[329484966,1718389850993,-500.0,0.00021917,2]
[329484967,1718389851022,-2726.63,0.00021917,2]
[329484968,1718389851048,-1303.63,0.00021917,2]
[329484969,1718389851060,-500.0,0.00021917,2]
[329484970,1718389851071,-1044.71,0.00021917,2]
[329484971,1718389851100,-694.54,0.00021917,2]
[329484972,1718389851119,-537.13,0.00021917,2]
[329484973,1718389851169,-514.61817963,0.00021917,2]
[329484974,1718389851186,-500.0,0.00021917,2]
[329484975,1718389851200,-309.3575938,0.00021917,2]
[329484976,1718389851228,-500.0,0.00021917,2]
[329484977,1718389851257,-1944.71,0.00021917,2]
[329484978,1718389851285,-500.0,0.00021917,2]
[329484979,1718389851307,-1206.05,0.00021917,2]
[329484980,1718389851329,-500.0,0.00021917,2]
[329484981,1718389851353,-500.0,0.00021917,2]
[329484982,1718389851376,-500.0,0.00021917,2]
[329484983,1718389851396,-500.0,0.00021917,2]
[329484984,1718389851408,-1028.61,0.00021917,2]
[329484985,1718389851438,-500.0,0.00021917,2]
[329484986,1718389851494,-500.0,0.00021917,2]
[329484989,1718389851527,-252.31532889,0.00021917,2]
[329484995,1718389851568,-500.0,0.00021917,2]
[329484999,1718389851617,-500.0,0.00021917,2]
[329485002,1718389851636,-500.0,0.00021917,2]
[329485006,1718389851651,-2311.73,0.00021917,2]
[329485008,1718389851664,-1089.25,0.00021917,2]
[329485011,1718389851676,-1607.69,0.00021917,2]
[329485014,1718389851706,-737.12,0.00021917,2]
[329485017,1718389851719,-500.0,0.00021917,2]
[329485019,1718389851730,-507.47595521,0.00021917,2]
[329485021,1718389851741,-500.0,0.00021917,2]
[329485026,1718389851773,-2332.61,0.00021917,2]
[329485028,1718389851785,-4949.66,0.00021917,2]
[329485031,1718389851798,-500.0,0.00021917,2]
[329485033,1718389851813,-7412.39,0.00021917,2]
[329485036,1718389851824,-500.0,0.00021917,2]
[329485038,1718389851849,-1264.08,0.00021917,2]
[329485041,1718389851860,-3546.14,0.00021917,2]
[329485045,1718389851887,-500.0,0.00021917,2]
[329485048,1718389851898,-2536.17,0.00021917,2]
[329485051,1718389851910,-7412.61,0.00021917,2]
[329485053,1718389851922,-5511.69,0.00021917,2]
[329485055,1718389851934,-756.16,0.00021917,2]
[329485056,1718389851948,-500.0,0.00021917,2]
[329485060,1718389851981,-5585.52,0.00021917,2]
[329485064,1718389852006,-1560.64,0.00021917,2]
[329485067,1718389852017,-500.0,0.00021917,2]
[329485069,1718389852040,-500.0,0.00021917,2]
[329485071,1718389852055,-500.0,0.00021917,2]
[329485075,1718389852080,-500.0,0.00021917,2]
[329485078,1718389852093,-500.0,0.00021917,2]
[329485081,1718389852109,-613.07,0.00021917,2]
[329485084,1718389852121,-1075.19,0.00021917,2]
[329485086,1718389852144,-500.0,0.00021917,2]
[329485089,1718389852172,-1229.17,0.00021917,2]
[329485093,1718389852187,-500.0,0.00021917,2]
[329485096,1718389852216,-554.3,0.00021917,2]
[329485098,1718389852228,-500.0,0.00021917,2]
[329485102,1718389852249,-736.41,0.00021917,2]
[329485105,1718389852261,-8836.62,0.00021917,2]
[329485108,1718389852272,-549.06,0.00021917,2]
[329485110,1718389852300,-563.32,0.00021917,2]
[329485115,1718389852312,-500.0,0.00021917,2]
[329485117,1718389852332,-185.2413825,0.00021917,2]
[329485120,1718389852349,-1379.69,0.00021917,2]
[329485123,1718389852361,-519.24319854,0.00021917,2]
[329485126,1718389852380,-500.0,0.00021917,2]
[329485128,1718389852393,-1932.08,0.00021917,2]
[329485131,1718389852408,-500.0,0.00021917,2]
[329485134,1718389852421,-13937.63,0.00021917,2]
[329485137,1718389852434,-500.0,0.00021917,2]
[329485140,1718389852456,-317.87977866,0.00021917,2]
[329485143,1718389852469,-10953.02,0.00021917,2]
[329485146,1718389852488,-500.0,0.00021917,2]
[329485149,1718389852501,-500.0,0.00021917,2]
[329485153,1718389852520,-500.0,0.00021917,2]
[329485155,1718389852533,-1270.34,0.00021917,2]
[329485158,1718389852544,-500.0,0.00021917,2]
[329485161,1718389852580,-7246.49,0.00021917,2]
[329485166,1718389852620,-500.0,0.00021917,2]
[329485170,1718389852651,-1133.38,0.00021917,2]
[329485174,1718389852665,-1354.57,0.00021917,2]
[329485176,1718389852676,-3990.89,0.00021917,2]
[329485177,1718389852688,-500.0,0.00021917,2]
[329485182,1718389852717,-500.0,0.00021917,2]
[329485184,1718389852747,-500.0,0.00021917,2]
[329485187,1718389852765,-636.65,0.00021917,2]
[329485191,1718389852789,-500.0,0.00021917,2]
[329485194,1718389852815,-500.0,0.00021917,2]
[329485196,1718389852846,-500.0,0.00021917,2]
[329485199,1718389852864,-500.0,0.00021917,2]
[329485201,1718389852897,-1215.22,0.00021917,2]
[329485204,1718389852909,-500.0,0.00021917,2]
[329485206,1718389852920,-500.0,0.00021917,2]
[329485209,1718389852935,-1837.53,0.00021917,2]
[329485211,1718389852962,-500.0,0.00021917,2]
[329485214,1718389852974,-500.0,0.00021917,2]
[329485218,1718389852994,-1349.6,0.00021917,2]
[329485224,1718389853026,-2196.07,0.00021917,2]
[329485227,1718389853044,-2501.07,0.00021917,2]
[329485231,1718389853063,-500.0,0.00021917,2]
[329485235,1718389853078,-711.66,0.00021917,2]
[329485242,1718389853102,-500.0,0.00021917,2]
[329485244,1718389853113,-250.0,0.00021917,2]
[329485248,1718389853134,-500.0,0.00021917,2]
[329485250,1718389853145,-4883.04,0.00021917,2]
[329485266,1718389853325,-500.0,0.00021917,2]
[329485267,1718389853335,-500.0,0.00021917,2]
[329485269,1718389853346,-500.0,0.00021917,2]
[329485271,1718389853358,-500.0,0.00021917,2]
[329485273,1718389853370,-658.37,0.00021917,2]
[329485274,1718389853389,-1017.78,0.00021917,2]
[329485276,1718389853413,-4507.79,0.00021917,2]
[329485277,1718389853431,-1173.46,0.00021917,2]
[329485279,1718389853442,-500.0,0.00021917,2]
[329485281,1718389853454,-500.0,0.00021917,2]
[329485283,1718389853472,-1838.38,0.00021917,2]
[329485285,1718389853489,-595.34391944,0.00021917,2]
[329485287,1718389853502,-500.0,0.00021917,2]
[329485289,1718389853513,-238.08627124,0.00021917,2]
[329485298,1718389853862,-259.79166223,0.00021917,2]
[329485299,1718389853883,-325.925,0.00021917,2]
[329485300,1718389853905,-3310.96706653,0.00021917,2]
[329485301,1718389853919,-611.63,0.00021917,2]
[329485302,1718389853931,-500.0,0.00021917,2]
[329485303,1718389853942,-502.8,0.00021917,2]
[329485304,1718389853969,-500.0,0.00021917,2]
[329485305,1718389853984,-3382.42,0.00021917,2]
[329485306,1718389853997,-500.0,0.00021917,2]
[329485307,1718389854008,-611.19,0.00021917,2]
[329485308,1718389854023,-514.771578,0.00021917,2]
[329485309,1718389854034,-4489.2,0.00021917,2]
[329485310,1718389854053,-4166.83,0.00021917,2]
[329485311,1718389854077,-500.0,0.00021917,2]
[329485312,1718389854093,-1595.83,0.00021917,2]
[329485313,1718389854106,-500.0,0.00021917,2]
[329485315,1718389854144,-500.0,0.00021917,2]
[329485317,1718389854166,-1471.62,0.00021917,2]
[329485319,1718389854183,-1471.62,0.00021917,2]
[329485320,1718389854200,-5328.26,0.00021917,2]
[329485321,1718389854214,-1471.62,0.00021917,2]
[329485322,1718389854226,-1471.62,0.00021917,2]
[329485324,1718389854253,-1471.62,0.00021917,2]
[329485327,1718389854278,-2779.11,0.00021917,2]
[329485328,1718389854312,-500.0,0.00021917,2]
[329485330,1718389854331,-4572.35,0.00021917,2]
[329485332,1718389854350,-1016.46,0.00021917,2]
[329485334,1718389854364,-1949.2,0.00021917,2]
[329485336,1718389854388,-500.0,0.00021917,2]
[329485338,1718389854426,-880.74,0.00021917,2]
[329485340,1718389854469,-500.0,0.00021917,2]
[329485341,1718389854517,-3544.94,0.00021917,2]
[329485343,1718389854530,-500.0,0.00021917,2]
[329485345,1718389854579,-953.75,0.00021917,2]
[329485346,1718389854591,-500.0,0.00021917,2]
[329485348,1718389854615,-695.88,0.00021917,2]
[329485350,1718389854642,-1128.93,0.00021917,2]
[329485352,1718389854667,-770.95,0.00021917,2]
[329485354,1718389854688,-1364.63,0.00021917,2]
[329485356,1718389854728,-385.95760097,0.00021917,2]
[329485360,1718389854769,-419.48239903,0.00021917,2]
[329485363,1718389854804,-509.02050737,0.00021917,2]
[329485366,1718389854818,-526.12524734,0.00021917,2]
[329485370,1718389854844,-1046.51,0.00021917,2]
[329485372,1718389854865,-500.0,0.00021917,2]
[329485374,1718389854893,-601.3,0.00021917,2]
[329485377,1718389854924,-1736.76,0.00021917,2]
[329485379,1718389854953,-340.03919699,0.00021917,2]
[329485381,1718389854996,-182.21963135,0.00021917,2]
[329485384,1718389855025,-500.0,0.00021917,2]
[329485385,1718389855036,-3300.93,0.00021917,2]
[329485387,1718389855063,-1216.3,0.00021917,2]
[329485389,1718389855075,-500.0,0.00021917,2]
[329485391,1718389855087,-1160.29,0.00021917,2]
[329485393,1718389855102,-500.0,0.00021917,2]
[329485395,1718389855118,-500.0,0.00021917,2]
[329485397,1718389855147,-1677.17,0.00021917,2]
[329485400,1718389855172,-644.97,0.00021917,2]
[329485403,1718389855201,-500.0,0.00021917,2]
[329485404,1718389855218,-1549.05,0.00021917,2]
[329485406,1718389855229,-2211.66,0.00021917,2]
[329485407,1718389855249,-812.71,0.00021917,2]
[329485409,1718389855278,-2078.73,0.00021917,2]
[329485411,1718389855297,-500.0,0.00021917,2]
[329485413,1718389855315,-500.0,0.00021917,2]
[329485414,1718389855334,-500.0,0.00021917,2]
[329485416,1718389855352,-562.99,0.00021917,2]
[329485418,1718389855366,-584.14,0.00021917,2]
[329485420,1718389855421,-500.0,0.00021917,2]
[329485422,1718389855448,-500.0,0.00021917,2]
[329485423,1718389855473,-223.83419394,0.00021917,2]
[329485426,1718389855487,-617.71,0.00021917,2]
[329485428,1718389855512,-2574.5,0.00021917,2]
[329485430,1718389855546,-646.5,0.00021917,2]
[329485432,1718389855559,-500.0,0.00021917,2]
[329485435,1718389855627,-1102.49,0.00021917,2]
[329485436,1718389855639,-1827.22,0.00021917,2]
[329485438,1718389855677,-7582.02,0.00021917,2]
[329485440,1718389855689,-500.0,0.00021917,2]
[329485442,1718389855703,-12397.09,0.00021917,2]
[329485444,1718389855716,-500.0,0.00021917,2]
[329485447,1718389855738,-500.0,0.00021917,2]
[329485449,1718389855776,-560.71,0.00021917,2]
[329485450,1718389855788,-500.0,0.00021917,2]
[329485453,1718389855823,-500.0,0.00021917,2]
[329485454,1718389855856,-500.0,0.00021917,2]
[329485456,1718389855873,-11804.34,0.00021917,2]
[329485458,1718389855892,-336.17,0.00021918,2]
[329485460,1718389855916,-334.3,0.00021918,2]
[329485461,1718389855934,-250.0,0.00021918,2]
[329485463,1718389855950,-2000.0,0.00022,2]
[329485465,1718389855981,-2000.0,0.0002201,2]
[329485468,1718389856019,-2000.0,0.0002202,2]
[329485470,1718389856033,-2000.0,0.0002203,2]
[329485472,1718389856048,-168.82,0.00022035,2]
[329485474,1718389856066,-2135.289274,0.0002204,2]
[329485476,1718389856080,-215.54507709,0.00022091,2]
[329485478,1718389856101,-76447.5293761,0.00022171,2]
[329485480,1718389856118,-1471.62,0.0002218,3]
[329485482,1718389856134,-1471.62,0.0002219,3]
[329485485,1718389856154,-1471.62,0.0002219,3]
[329485487,1718389856186,-500.0,0.00022191,3]
[329485488,1718389856219,-500.0,0.00022191,3]
[329485490,1718389856234,-500.0,0.00022191,3]
[329485492,1718389856260,-500.0,0.00022191,3]
[329485494,1718389856277,-500.0,0.00022191,3]
[329485496,1718389856292,-500.0,0.00022191,3]
[329485497,1718389856322,-724.11,0.00022191,3]
[329485498,1718389856346,-500.0,0.00022191,3]
[329485499,1718389856380,-500.0,0.00022191,3]
[329485500,1718389856407,-500.0,0.00022191,3]
[329485501,1718389856423,-500.0,0.00022191,3]
[329485502,1718389856441,-379.12550125,0.00022191,3]
[329485503,1718389856464,-500.0,0.00022191,3]
[329485505,1718389856508,-500.0,0.00022191,3]
[329485506,1718389856552,-500.0,0.00022191,3]
[329485507,1718389856564,-500.0,0.00022191,3]
[329485510,1718389856609,-500.0,0.00022191,3]
[329485512,1718389856621,-500.0,0.00022191,3]
[329485513,1718389856636,-500.0,0.00022191,3]
[329485515,1718389856647,-500.0,0.00022191,3]
[329485517,1718389856673,-500.0,0.00022191,2]
[329485519,1718389856697,-500.0,0.00022191,3]
[329485521,1718389856715,-500.0,0.00022191,3]
[329485522,1718389856731,-500.0,0.00022191,3]
[329485524,1718389856757,-500.0,0.00022191,3]
[329485526,1718389856783,-500.0,0.00022191,3]
[329485527,1718389856799,-500.0,0.00022191,3]
[329485529,1718389856813,-182.73646661,0.00022191,3]
[329485532,1718389856853,-500.0,0.00022191,3]
[329485534,1718389856905,-500.0,0.00022191,3]
[329485537,1718389856932,-500.0,0.00022191,3]
[329485539,1718389856949,-500.0,0.00022191,3]
[329485541,1718389856965,-500.0,0.00022191,3]
[329485543,1718389856986,-500.0,0.00022191,3]
[329485544,1718389856997,-500.0,0.00022191,3]
[329485546,1718389857016,-500.0,0.00022191,3]
[329485548,1718389857036,-500.0,0.00022191,3]
[329485551,1718389857071,-500.0,0.00022191,3]
[329485553,1718389857103,-500.0,0.00022191,3]
[329485556,1718389857120,-500.0,0.00022191,3]
[329485558,1718389857136,-500.0,0.00022191,3]
[329485559,1718389857148,-500.0,0.00022191,2]
[329485561,1718389857160,-500.0,0.00022191,3]
[329485563,1718389857177,-500.0,0.00022191,3]
[329485565,1718389857195,-408.28364525,0.00022191,3]
[329485568,1718389857210,-500.0,0.00022191,3]
[329485570,1718389857224,-207.08446305,0.00022191,3]
[329485571,1718389857256,-500.0,0.00022191,3]
[329485573,1718389857295,-500.0,0.00022191,3]
[329485575,1718389857307,-500.0,0.00022191,3]
[329485578,1718389857320,-688.1,0.00022191,3]
[329485580,1718389857345,-500.0,0.00022191,3]
[329485582,1718389857361,-560.85,0.00022191,3]
[329485583,1718389857373,-500.0,0.00022191,3]
[329485586,1718389857401,-500.0,0.00022191,3]
[329485587,1718389857424,-500.0,0.00022191,3]
[329485589,1718389857435,-500.0,0.00022191,3]
[329485591,1718389857446,-500.0,0.00022191,3]
[329485593,1718389857462,-500.0,0.00022191,3]
[329485595,1718389857480,-500.0,0.00022191,3]
[329485597,1718389857491,-545.95191036,0.00022191,3]
[329485599,1718389857503,-500.0,0.00022191,3]
[329485601,1718389857519,-500.0,0.00022191,3]
[329485603,1718389857537,-500.0,0.00022191,3]
[329485605,1718389857553,-893.93,0.00022191,3]
[329485606,1718389857567,-525.7,0.00022191,3]
[329485608,1718389857589,-500.0,0.00022191,3]
[329485609,1718389857601,-785.49,0.00022191,3]
[329485611,1718389857612,-500.0,0.00022191,3]
[329485612,1718389857631,-500.0,0.00022191,3]
[329485614,1718389857643,-986.68,0.00022191,3]
[329485616,1718389857659,-500.0,0.00022191,3]
[329485617,1718389857684,-500.0,0.00022191,3]
[329485620,1718389857705,-500.0,0.00022191,3]
[329485622,1718389857739,-500.0,0.00022191,3]
[329485624,1718389857754,-500.0,0.00022191,3]
[329485626,1718389857769,-500.0,0.00022191,3]
[329485628,1718389857797,-500.0,0.00022191,3]
[329485631,1718389857822,-500.0,0.00022191,3]
[329485633,1718389857845,-500.0,0.00022191,3]
[329485634,1718389857878,-500.0,0.00022191,3]
[329485636,1718389857889,-500.0,0.00022191,3]
[329485638,1718389857903,-500.0,0.00022191,3]
[329485641,1718389857971,-500.0,0.00022191,3]
[329485643,1718389857989,-500.0,0.00022191,3]
[329485645,1718389858032,-500.0,0.00022191,3]
[329485647,1718389858055,-500.0,0.00022191,3]
[329485649,1718389858075,-500.0,0.00022191,3]
[329485650,1718389858093,-500.0,0.00022191,3]
[329485653,1718389858135,-500.0,0.00022191,3]
[329485655,1718389858196,-500.0,0.00022191,3]
[329485656,1718389858223,-500.0,0.00022191,3]
[329485658,1718389858242,-307.57299926,0.00022191,3]
[329485661,1718389858259,-500.0,0.00022191,3]
[329485663,1718389858289,-500.0,0.00022191,3]
[329485665,1718389858303,-500.0,0.00022191,3]
[329485666,1718389858320,-544.92131593,0.00022191,3]
[329485667,1718389858335,-670.2,0.00022191,3]
[329485668,1718389858361,-500.0,0.00022191,3]
[329485669,1718389858404,-500.0,0.00022191,3]
[329485672,1718389858477,-550.39304231,0.00022191,3]
[329485673,1718389858495,-500.0,0.00022191,3]
[329485674,1718389858519,-500.0,0.00022191,3]
[329485676,1718389858535,-500.0,0.00022191,3]
[329485679,1718389858558,-500.0,0.00022191,3]
[329485681,1718389858571,-500.0,0.00022191,3]
[329485683,1718389858584,-500.0,0.00022191,3]
[329485685,1718389858604,-500.0,0.00022191,3]
[329485687,1718389858637,-500.0,0.00022191,3]
[329485688,1718389858674,-500.0,0.00022191,3]
[329485689,1718389858686,-500.0,0.00022191,3]
[329485690,1718389858698,-500.0,0.00022191,3]
[329485692,1718389858710,-500.0,0.00022191,3]
[329485693,1718389858732,-500.0,0.00022191,3]
[329485695,1718389858746,-500.0,0.00022191,3]
[329485697,1718389858759,-500.0,0.00022191,3]
[329485698,1718389858770,-500.0,0.00022191,3]
[329485699,1718389858788,-500.0,0.00022191,3]
[329485701,1718389858801,-500.0,0.00022191,3]
[329485703,1718389858812,-500.0,0.00022191,3]
[329485705,1718389858823,-500.0,0.00022191,3]
[329485706,1718389858835,-500.0,0.00022191,3]
[329485708,1718389858846,-500.0,0.00022191,3]
[329485709,1718389858864,-500.0,0.00022191,3]
[329485711,1718389858887,-501.62,0.00022191,3]
[329485713,1718389858899,-500.0,0.00022191,3]
[329485715,1718389858911,-344.82302362,0.00022191,3]
[329485718,1718389858924,-500.0,0.00022191,3]
[329485720,1718389858950,-500.0,0.00022191,3]
[329485723,1718389859001,-500.0,0.00022191,3]
[329485725,1718389859017,-500.0,0.00022191,3]
[329485727,1718389859029,-500.0,0.00022191,3]
[329485729,1718389859049,-500.0,0.00022191,3]
[329485731,1718389859061,-500.0,0.00022191,3]
[329485733,1718389859084,-500.0,0.00022191,3]
[329485736,1718389859108,-500.0,0.00022191,3]
[329485738,1718389859133,-500.0,0.00022191,3]
[329485740,1718389859168,-500.0,0.00022191,3]
[329485742,1718389859182,-510.70246887,0.00022191,3]
[329485744,1718389859194,-500.0,0.00022191,3]
[329485747,1718389859232,-500.0,0.00022191,3]
[329485749,1718389859242,-250.34,0.00022191,7]
[329485752,1718389859302,-500.0,0.00022191,3]
[329485754,1718389859315,-500.0,0.00022191,3]
[329485756,1718389859352,-251.91155075,0.00022191,3]
[329485758,1718389859363,-500.0,0.00022191,3]
[329485760,1718389859374,-500.0,0.00022191,3]
[329485762,1718389859387,-500.0,0.00022191,3]
[329485764,1718389859416,-500.0,0.00022191,3]
[329485766,1718389859433,-500.0,0.00022191,3]
[329485767,1718389859446,-633.08,0.00022191,3]
[329485769,1718389859459,-500.0,0.00022191,3]
[329485771,1718389859482,-500.0,0.00022191,3]
[329485773,1718389859501,-500.0,0.00022191,3]
[329485775,1718389859512,-500.0,0.00022191,3]
[329485778,1718389859542,-500.0,0.00022191,3]
[329485780,1718389859554,-500.0,0.00022191,3]
[329485782,1718389859571,-500.0,0.00022191,3]
[329485785,1718389859591,-183.6598415,0.00022191,3]
[329485786,1718389859613,-500.0,0.00022191,3]
[329485789,1718389859642,-500.0,0.00022191,3]
[329485790,1718389859655,-517.18457594,0.00022191,3]
[329485793,1718389859675,-500.0,0.00022191,3]
[329485795,1718389859687,-500.0,0.00022191,3]
[329485796,1718389859697,-500.0,0.00022191,3]
[329485797,1718389859711,-500.0,0.00022191,3]
[329485799,1718389859723,-500.0,0.00022191,3]
[329485801,1718389859748,-500.0,0.00022191,3]
[329485803,1718389859777,-500.0,0.00022191,3]
[329485807,1718389859841,-1325.69,0.00022191,3]
[329485810,1718389859890,-500.0,0.00022191,3]
[329485812,1718389859904,-500.0,0.00022191,3]
[329485814,1718389859915,-150.0,0.00022191,3]
[329485816,1718389859927,-500.0,0.00022191,3]
[329485817,1718389859940,-665.04,0.00022191,3]
[329485820,1718389859964,-500.0,0.00022191,3]
[329485822,1718389859979,-500.0,0.00022191,3]
[329485824,1718389860033,-500.0,0.00022191,3]
[329485825,1718389860112,-500.0,0.00022191,3]
[329485827,1718389860156,-500.0,0.00022191,3]
[329485829,1718389860171,-500.0,0.00022191,3]
[329485832,1718389860199,-500.0,0.00022191,3]
[329485834,1718389860212,-501.94175108,0.00022191,3]
[329485835,1718389860228,-500.0,0.00022191,3]
[329485838,1718389860250,-500.0,0.00022191,3]
[329485840,1718389860263,-500.0,0.00022191,3]
[329485842,1718389860296,-500.0,0.00022191,3]
[329485844,1718389860334,-500.0,0.00022191,3]
[329485846,1718389860346,-500.0,0.00022191,3]
[329485848,1718389860372,-592.49,0.00022191,3]
[329485849,1718389860384,-630.8,0.00022191,3]
[329485851,1718389860399,-573.93,0.00022191,3]
[329485853,1718389860443,-483.67200056,0.00022191,3]
[329485856,1718389860495,-496.81486725,0.00022191,3]
[329485858,1718389860506,-500.0,0.00022191,3]
[329485860,1718389860520,-500.0,0.00022191,3]
[329485862,1718389860569,-212.51245829,0.00022191,3]
[329485864,1718389860585,-500.0,0.00022191,3]
[329485866,1718389860600,-736.46,0.00022191,3]
[329485868,1718389860611,-434.07151768,0.00022191,3]
[329485870,1718389860632,-500.0,0.00022191,3]
[329485871,1718389860646,-500.0,0.00022191,3]
[329485873,1718389860657,-517.08639518,0.00022191,3]
[329485875,1718389860667,-625.25,0.00022191,3]
[329485877,1718389860678,-422.69019292,0.00022191,3]
[329485878,1718389860720,-77.30980708,0.00022191,3]
[329485879,1718389860744,-500.0,0.00022191,3]
[329485880,1718389860757,-288.82576141,0.00022191,3]
[329485881,1718389860790,-211.17423859,0.00022191,3]
[329485882,1718389860836,-500.0,0.00022191,3]
[329485883,1718389860850,-287.97759045,0.00022191,3]
[329485884,1718389862777,-297.95,0.00014782,2]
[329485885,1718389862790,-500.0,0.00021917,2]
[329485886,1718389862808,-500.0,0.00021917,2]
[329485887,1718389862820,-500.0,0.00021917,2]
[329485888,1718389862832,-212.02240955,0.00022191,3]
[329485889,1718389862846,-501.37003767,0.00022191,3]
[329485890,1718389862856,-500.0,0.00022191,3]
[329485891,1718389862875,-5.13253193,0.00022191,3]
[329485892,1718389864182,-293.66704286,0.00021903,2]
[329485893,1718389864237,-837.93466786,0.00021903,2]
[329485894,1718389864251,-1690.31278715,0.00021903,2]
[329485895,1718389864262,-355.65346835,0.00021916,2]
[329485896,1718389864284,-506.14060585,0.00021917,2]
[329485897,1718389864299,-494.86746807,0.00022191,3]
[329485898,1718389864311,-500.0,0.00022191,3]
[329485899,1718389864388,-500.0,0.00022191,3]
[329485900,1718389864421,-500.0,0.00022191,3]
[329485901,1718389864440,-500.0,0.00022191,3]
[329485902,1718389864468,-500.0,0.00022191,3]
[329485903,1718389864479,-504.30161486,0.00022191,3]